[Event "EYCC 2017"]
[Site "Mamaia"]
[Date "2017.09.08"]
[Round "4"]
[White "Berdnyk, Mariia"]
[Black "Bulatova, Kamaliya"]
[Result "1-0"]
[ECO "B87"]
[WhiteElo "2055"]
[BlackElo "2014"]
[Annotator "NA"]
[PlyCount "79"]
[EventDate "2017.??.??"]
[EventType "swiss"]
[EventCountry "ROU"]
[SourceTitle "playchess.com"]
[Source "ChessBase"]
[SourceQuality "1"]
[TimeControl "40/5400+30:1800+30"]

1. e4 {[%emt 0:00:00]} c5 {[%emt 0:00:04]} 2. Nf3 {[%emt 0:00:00]} d6 {[%emt 0:00:04]} 3. d4 {[%emt 0:00:00]} cxd4 {[%emt 0:00:04]} 4. Nxd4 {[%emt 0:00:00]} Nf6 {[%emt 0:00:08]} 5. Nc3 {[%emt 0:00:00]} a6 {[%emt 0:00:07]} 6. Bc4 {[%emt 0:00:00]} e6 {[%emt 0:00:17]} 7. Bb3 {[%emt 0:00:00]} b5 {[%emt 0:00:12]} 8. O-O {[%emt 0:00:26]} Be7 {[%emt 0:00:04]} 9. Qf3 {[%emt 0:01:30]} Qc7 {[%emt 0:00:25]} 10. Qg3 {[%emt 0:00:36]} O-O {[%emt 0:01:21]} 11. Bh6 {[%emt 0:04:15]} Ne8 {[%emt 0:00:06]} 12. Rad1 {[%emt 0:01:25]} Bd7 {[%emt 0:00:12]} 13. Rfe1 {[%emt 0:07:10]} Nc6 {[%emt 0:06:52]} 14. Nce2 {[%emt 0:04:29]} Kh8 {[%emt 0:03:45]} 15. Bg5 {[%emt 0:03:35]} Bxg5 {[%emt 0:02:09]} 16. Qxg5 {[%emt 0:00:10]} Nf6 {[%emt 0:00:14]} 17. Ng3 {[%emt 0:06:10]} h6 {[%emt 0:03:00]} 18. Qd2 {[%emt 0:05:45]} Rfd8 {[%emt 0:09:24]} 19. Re3 {[%emt 0:13:28]} Qb6 {[%emt 0:07:23]} 20. Nf3 {[%emt 0:04:48]} a5 {[%emt 0:14:57]} 21. a3 {[%emt 0:04:20]} Bc8 {[%emt 0:07:46]} 22. Rd3 {[%emt 0:01:46]} Ba6 {[%emt 0:00:41]} 23. Qf4 {[%emt 0:03:11]} a4 {[%emt 0:01:59]} 24. Ba2 {[%emt 0:00:10]} b4 {[%emt 0:05:47]} 25. Rxd6 {[%emt 0:08:11]} bxa3 {[%emt 0:02:30]} 26. b3 {[%emt 0:04:16]} Rxd6 {[%emt 0:03:27]} 27. Rxd6 {[%emt 0:00:09]} Qc5 {[%emt 0:00:28]} 28. e5 {[%emt 0:04:53]} Ne8 {[%emt 0:04:36]} 29. Rd2 {[%emt 0:04:07]} Qc3 {[%emt 0:03:56]} 30. h3 {[%emt 0:00:34]} Ra7 {[%emt 0:01:01]} 31. Kh2 {[%emt 0:01:36]} Nb4 {[%emt 0:01:15]} 32. Rd8 {[%emt 0:01:47]} Re7 {[%emt 0:01:57]} 33. Rxe8+ {[%emt 0:02:35]} Rxe8 {[%emt 0:00:16]} 34. Qxf7 {[%emt 0:00:09]} Rg8 {[%emt 0:07:33]} 35. Nh4 {[%emt 0:02:42]} Qxc2 {[%emt 0:07:04]} 36. Ng6+ {[%emt 0:01:19]} Kh7 {[%emt 0:00:23]} 37. Ne7 {[%emt 0:00:15]} Qc8 {[%emt 0:06:34]} 38. Nxc8 {[%emt 0:00:43]} Bxc8 {[%emt 0:00:39]} 39. Bb1+ {[%emt 0:00:07]} Kh8 {[%emt 0:00:19]} 40. Qg6 {[%emt 0:00:00]} 1-0

[Event "EYCC 2017"]
[Site "Mamaia"]
[Date "2017.09.08"]
[Round "4"]
[White "Sucikova, Svetlana"]
[Black "Olde, Margareth"]
[Result "1/2-1/2"]
[ECO "A05"]
[WhiteElo "2055"]
[BlackElo "2161"]
[Annotator "NA"]
[PlyCount "85"]
[EventDate "2017.??.??"]
[EventType "swiss"]
[EventCountry "ROU"]
[SourceTitle "playchess.com"]
[Source "ChessBase"]
[SourceQuality "1"]
[TimeControl "40/5400+30:1800+30"]

1. Nf3 {[%emt 0:00:00]} Nf6 {[%emt 0:00:24]} 2. g3 {[%emt 0:00:29]} d5 {[%emt 0:01:47]} 3. d4 {[%emt 0:01:17]} e6 {[%emt 0:01:05]} 4. Bg2 {[%emt 0:00:18]} Be7 {[%emt 0:01:20]} 5. O-O {[%emt 0:00:35]} O-O {[%emt 0:01:40]} 6. c4 {[%emt 0:03:13]} dxc4 {[%emt 0:04:18]} 7. Qc2 {[%emt 0:04:49]} a6 {[%emt 0:00:10]} 8. Qxc4 {[%emt 0:09:34]} b5 {[%emt 0:00:07]} 9. Qc2 {[%emt 0:00:05]} Bb7 {[%emt 0:00:10]} 10. Bf4 {[%emt 0:00:07]} Bd6 {[%emt 0:17:17]} 11. Bxd6 {[%emt 0:04:44]} Qxd6 {[%emt 0:00:52]} 12. Nbd2 {[%emt 0:00:59]} Nc6 {[%emt 0:07:38]} 13. Nb3 {[%emt 0:09:29]} Nb4 {[%emt 0:09:17]} 14. Qc5 {[%emt 0:04:58]} Bd5 {[%emt 0:03:41]} 15. a3 {[%emt 0:09:05]} Nc6 {[%emt 0:02:41]} 16. Qc3 {[%emt 0:04:13]} Rac8 {[%emt 0:05:01]} 17. Rfd1 {[%emt 0:03:30]} b4 {[%emt 0:15:20]} 18. axb4 {[%emt 0:05:42]} Ne4 {[%emt 0:00:29]} 19. Qe3 {[%emt 0:01:41]} Nxb4 {[%emt 0:04:14]} 20. Rdc1 {[%emt 0:03:01]} Nf6 {[%emt 0:03:40]} 21. Nc5 {[%emt 0:02:05]} Qb6 {[%emt 0:00:17]} 22. Qa3 {[%emt 0:02:17]} Ra8 {[%emt 0:00:45]} 23. Ne5 {[%emt 0:07:40]} Bxg2 {[%emt 0:01:49]} 24. Kxg2 {[%emt 0:00:08]} Rfd8 {[%emt 0:00:49]} 25. Rc4 {[%emt 0:02:11]} a5 {[%emt 0:02:12]} 26. Qf3 {[%emt 0:00:52]} Nbd5 {[%emt 0:02:11]} 27. b3 {[%emt 0:01:40]} Qb5 {[%emt 0:00:28]} 28. g4 {[%emt 0:02:25]} h6 {[%emt 0:03:58]} 29. e3 {[%emt 0:01:36]} Nb6 {[%emt 0:00:37]} 30. Rc2 {[%emt 0:00:28]} Rf8 {[%emt 0:01:04]} 31. Rca2 {[%emt 0:01:59]} Nfd5 {[%emt 0:02:17]} 32. Ned3 {[%emt 0:04:30]} Nb4 {[%emt 0:01:39]} 33. Nxb4 {[%emt 0:00:12]} Qxb4 {[%emt 0:00:02]} 34. Qc6 {[%emt 0:01:34]} Ra7 {[%emt 0:02:54]} 35. h3 {[%emt 0:00:14]} Nd5 {[%emt 0:01:43]} 36. Qa4 {[%emt 0:03:17]} Qc3 {[%emt 0:01:11]} 37. Qc4 {[%emt 0:00:26]} Qxc4 {[%emt 0:01:21]} 38. bxc4 {[%emt 0:00:12]} Nb6 {[%emt 0:00:04]} 39. Rxa5 {[%emt 0:00:29]} Rxa5 {[%emt 0:00:14]} 40. Rxa5 {[%emt 0:00:00]} Nxc4 {[%emt 0:00:06]} 41. Ra7 {[%emt 0:02:48]} Rc8 {[%emt 0:02:21]} 42. Na6 {[%emt 0:09:08]} c6 {[%emt 0:00:30]} 43. Nc5 {[%emt 0:04:10]} 1/2-1/2

[Event "EYCC 2017"]
[Site "Mamaia"]
[Date "2017.09.08"]
[Round "4"]
[White "Krasteva, Beloslava"]
[Black "Eizaguerri Floris, Maria"]
[Result "1/2-1/2"]
[ECO "D35"]
[WhiteElo "2048"]
[BlackElo "2098"]
[Annotator "NA RC"]
[PlyCount "211"]
[EventDate "2017.??.??"]
[EventType "swiss"]
[EventCountry "ROU"]
[SourceTitle "playchess.com"]
[Source "ChessBase"]
[SourceQuality "1"]
[TimeControl "40/5400+30:1800+30"]

1. d4 {[%emt 0:00:00]} d5 {[%emt 0:00:11]} 2. c4 {[%emt 0:00:00]} e6 {[%emt 0:00:08]} 3. Nc3 {[%emt 0:00:14]} Nf6 {[%emt 0:00:17]} 4. cxd5 {[%emt 0:00:31]} exd5 {[%emt 0:00:06]} 5. Bg5 {[%emt 0:00:20]} Bb4 {[%emt 0:02:37]} 6. e3 {[%emt 0:01:00]} Nbd7 {[%emt 0:05:38]} 7. Bd3 {[%emt 0:01:07]} c5 {[%emt 0:02:37]} 8. Nge2 {[%emt 0:01:12]} O-O {[%emt 0:05:36]} 9. O-O {[%emt 0:01:42]} c4 {[%emt 0:03:49]} 10. Bc2 {[%emt 0:02:16]} Nb6 {[%emt 0:05:13]} 11. f3 {[%emt 0:06:13]} Bd6 {[%emt 0:06:30]} 12. Qe1 {[%emt 0:06:03]} h6 {[%emt 0:10:09]} 13. Bf4 {[%emt 0:02:55]} Re8 {[%emt 0:02:33]} 14. Qf2 {[%emt 0:03:50]} Bxf4 {[%emt 0:08:38]} 15. Nxf4 {[%emt 0:00:48]} Qd6 {[%emt 0:00:14]} 16. Rad1 {[%emt 0:10:35]} Bd7 {[%emt 0:01:50]} 17. Nfe2 {[%emt 0:02:17]} Re7 {[%emt 0:02:54]} 18. Ng3 {[%emt 0:02:34]} Rae8 {[%emt 0:04:50]} 19. e4 {[%emt 0:06:02]} dxe4 {[%emt 0:00:27]} 20. fxe4 {[%emt 0:01:00]} Ng4 {[%emt 0:00:37]} 21. Qd2 {[%emt 0:02:45]} h5 {[%emt 0:04:35]} 22. e5 {[%emt 0:07:21]} Qh6 {[%emt 0:00:49]} 23. Qxh6 {[%emt 0:08:56]} Nxh6 {[%emt 0:00:11]} 24. Rf4 {[%emt 0:01:57]} Bg4 {[%emt 0:06:07]} 25. Rdf1 {[%emt 0:03:11]} h4 {[%emt 0:03:07]} 26. Nge4 {[%emt 0:03:04]} h3 {[%emt 0:01:49]} 27. Nd6 {[%emt 0:04:03]} hxg2 {[%emt 0:00:59]} 28. Kxg2 {[%emt 0:00:09]} Rd8 {[%emt 0:01:11]} 29. Be4 {[%emt 0:02:16]} g6 {[%emt 0:05:24]} 30. Nd5 {[%emt 0:07:43]} Nxd5 {[%emt 0:04:38]} 31. Bxd5 {[%emt 0:00:06]} Be6 {[%emt 0:05:36]} 32. Bxe6 {[%emt 0:06:50]} fxe6 {[%emt 0:03:06]} 33. Rc1 {[%emt 0:02:24]} b5 {[%emt 0:01:22]} 34. Nxb5 {[%emt 0:01:59]} Rb7 {[%emt 0:00:52]} 35. Nd6 {[%emt 0:01:39]} Rxb2+ {[%emt 0:00:08]} 36. Rf2 {[%emt 0:00:19]} Rb4 {[%emt 0:01:22]} 37. Rf6 {[%emt 0:01:32]} Nf5 {[%emt 0:01:45]} 38. Rxg6+ {[%emt 0:01:06]} Kh7 {[%emt 0:00:06]} 39. Rxe6 {[%emt 0:00:47]} Rg8+ {[%emt 0:01:14]} 40. Kh1 {[%emt 0:00:00]} Nxd4 {[%emt 0:00:27]} 41. Re7+ {[%emt 0:04:31]} Kh6 {[%emt 0:00:48]} 42. Rf7 {[%emt 0:14:26]} Ne2 {[%emt 0:15:19]} 43. Re1 {[%emt 0:04:30]} c3 {[%emt 0:01:35]} 44. Nf5+ {[%emt 0:03:06]} Kh5 {[%emt 0:03:56]} 45. Ne7 {[%emt 0:05:26]} Re4 {[%emt 0:09:35]} 46. Nxg8 {[%emt 0:01:29]} Ng3+ {[%emt 0:00:03]} 47. Kg2 {[%emt 0:00:42]} Rxe1 {[%emt 0:00:31]} 48. Rc7 {[%emt 0:00:21]} Nf5 {[%emt 0:02:11]} 49. Rxc3 {[%emt 0:00:28]} Rxe5 {[%emt 0:00:07]} 50. Nf6+ {[%emt 0:00:22]} Kg6 {[%emt 0:00:44]} 51. Ng4 {[%emt 0:00:32]} Re2+ {[%emt 0:00:08]} 52. Kf3 {[%emt 0:00:37]} Rxa2 {[%emt 0:00:10]} 53. h3 {[%emt 0:00:33]} Kg5 {[%emt 0:00:42]} 54. Rc5 {[%emt 0:00:27]} Kg6 {[%emt 0:00:32]} 55. Rc6+ {[%emt 0:00:20]} Kf7 {[%emt 0:00:30]} 56. Rf6+ {[%emt 0:00:15]} Kg7 {[%emt 0:00:09]} 57. Rxf5 {[%emt 0:00:08]} Ra3+ {[%emt 0:00:12]} 58. Ne3 {[%emt 0:00:40]} Kg6 {[%emt 0:00:14]} 59. Rc5 {[%emt 0:00:25]} a5 {[%emt 0:00:05]} 60. h4 {[%emt 0:00:36]} a4 {[%emt 0:00:08]} 61. Ra5 {[%emt 0:01:03]} Ra1 {[%emt 0:00:23]} 62. Nc4 {[%emt 0:00:31]} Rf1+ {[%emt 0:01:18]} 63. Kg3 {[%emt 0:00:19]} Rg1+ {[%emt 0:00:07]} 64. Kh3 {[%emt 0:00:36]} Rh1+ {[%emt 0:00:04]} 65. Kg4 {[%emt 0:00:18]} Rg1+ {[%emt 0:00:03]} 66. Kf3 {[%emt 0:00:25]} Rf1+ {[%emt 0:00:04]} 67. Kg2 {[%emt 0:00:22]} Ra1 {[%emt 0:00:31]} 68. Kh2 {[%emt 0:00:59]} Kh6 {[%emt 0:00:16]} 69. Kg2 {[%emt 0:00:18]} Kg6 {[%emt 0:00:06]} 70. Nb6 {[%emt 0:00:44]} a3 {[%emt 0:00:19]} 71. Nc4 {[%emt 0:00:14]} a2 {[%emt 0:00:06]} 72. Nd2 {[%emt 0:00:21]} Kh6 {[%emt 0:00:19]} 73. Kf2 {[%emt 0:00:56]} Rh1 {[%emt 0:00:46]} 74. Rxa2 {[%emt 0:00:23]} Rxh4 {[%emt 0:00:05]} 75. Kg3 {[%emt 0:00:13]} Rb4 {[%emt 0:00:11]} 76. Ra1 {[%emt 0:00:41]} Kg6 {[%emt 0:00:35]} 77. Rf1 {[%emt 0:00:06]} Rd4 {[%emt 0:00:25]} 78. Nf3 {[%emt 0:00:19]} Ra4 {[%emt 0:00:08]} 79. Ne5+ {[%emt 0:00:41]} Kg5 {[%emt 0:00:26]} 80. Nf7+ {[%emt 0:00:36]} Kg6 {[%emt 0:00:32]} 81. Ne5+ {[%emt 0:00:22]} Kg5 {[%emt 0:00:11]} 82. Rf8 {[%emt 0:00:05]} Ra3+ {[%emt 0:01:07]} 83. Nf3+ {[%emt 0:00:12]} Kg6 {[%emt 0:00:21]} 84. Kf4 {[%emt 0:00:33]} Ra4+ {[%emt 0:00:05]} 85. Ke5 {[%emt 0:00:09]} Ra5+ {[%emt 0:00:10]} 86. Ke4 {[%emt 0:00:12]} Kg7 {[%emt 0:00:44]} 87. Rf4 {[%emt 0:00:17]} Ra4+ {[%emt 0:00:31]} 88. Nd4 {[%emt 0:00:07]} Ra5 {[%emt 0:00:15]} 89. Rf2 {[%emt 0:00:41]} Kg6 {[%emt 0:00:32]} 90. Ne6 {[%emt 0:00:41]} Rb5 {[%emt 0:00:40]} 91. Nc7 {[%emt 0:00:20]} Ra5 {[%emt 0:02:05]} 92. Nd5 {[%emt 0:00:24]} Ra1 {[%emt 0:00:46]} 93. Ke5 {[%emt 0:01:10]} Re1+ {[%emt 0:00:10]} 94. Kd4 {[%emt 0:00:52]} Rd1+ {[%emt 0:00:12]} 95. Ke4 {[%emt 0:00:06]} Re1+ {[%emt 0:00:05]} 96. Ne3 {[%emt 0:00:08]} Ra1 {[%emt 0:00:17]} 97. Rg2+ {[%emt 0:00:55]} Kf6 {[%emt 0:00:30]} 98. Nd5+ {[%emt 0:00:08]} Ke6 {[%emt 0:00:28]} 99. Rg6+ {[%emt 0:00:06]} Kd7 {[%emt 0:00:44]} 100. Rg7+ {[%emt 0:00:12]} Ke6 {[%emt 0:00:55]} 101. Rg6+ {[%emt 0:00:31]} Kd7 {[%emt 0:00:06]} 102. Ne3 {[%emt 0:01:25]} Re1 {[%emt 0:01:21]} 103. Kd4 {[%emt 0:00:08]} Ra1 {[%emt 0:00:08]} 104. Nc4 {[%emt 0:00:18]} Rd1+ {[%emt 0:00:11]} 105. Kc5 {[%emt 0:00:08]} Rc1 {[%emt 0:00:43]} 106. Kd5 {[%emt 0:02:04]} 1/2-1/2

[Event "EYCC 2017"]
[Site "Mamaia"]
[Date "2017.09.08"]
[Round "4"]
[White "Vozinaki, Anthi - Maria"]
[Black "Cvitan, Ena"]
[Result "0-1"]
[ECO "B18"]
[WhiteElo "2040"]
[BlackElo "2270"]
[Annotator "NA"]
[PlyCount "106"]
[EventDate "2017.??.??"]
[EventType "swiss"]
[EventCountry "ROU"]
[SourceTitle "playchess.com"]
[Source "ChessBase"]
[SourceQuality "1"]
[TimeControl "40/5400+30:1800+30"]

1. e4 {[%emt 0:00:00]} c6 {[%emt 0:00:05]} 2. d4 {[%emt 0:00:00]} d5 {[%emt 0:00:03]} 3. Nc3 {[%emt 0:00:00]} dxe4 {[%emt 0:02:08]} 4. Nxe4 {[%emt 0:00:00]} Bf5 {[%emt 0:00:06]} 5. Ng3 {[%emt 0:00:00]} Bg6 {[%emt 0:00:04]} 6. Nh3 {[%emt 0:00:03]} Nf6 {[%emt 0:06:53]} 7. Nf4 {[%emt 0:01:33]} Nbd7 {[%emt 0:00:46]} 8. h4 {[%emt 0:03:09]} e5 {[%emt 0:02:37]} 9. Nxg6 {[%emt 0:11:43]} hxg6 {[%emt 0:00:26]} 10. dxe5 {[%emt 0:08:05]} Qa5+ {[%emt 0:01:20]} 11. Bd2 {[%emt 0:01:24]} Qxe5+ {[%emt 0:00:09]} 12. Qe2 {[%emt 0:00:10]} Bc5 {[%emt 0:07:14]} 13. b4 {[%emt 0:20:24]} Bd6 {[%emt 0:12:13]} 14. a3 {[%emt 0:12:30]} O-O {[%emt 0:05:02]} 15. Qxe5 {[%emt 0:02:15]} Bxe5 {[%emt 0:00:55]} 16. Rd1 {[%emt 0:04:49]} Rfe8 {[%emt 0:02:56]} 17. Be2 {[%emt 0:04:01]} Bxg3 {[%emt 0:11:18]} 18. fxg3 {[%emt 0:00:06]} Ne4 {[%emt 0:01:51]} 19. Rh3 {[%emt 0:06:04]} Ndf6 {[%emt 0:03:52]} 20. Kf1 {[%emt 0:03:56]} Rad8 {[%emt 0:08:02]} 21. Bf4 {[%emt 0:03:48]} Nd5 {[%emt 0:02:02]} 22. Bf3 {[%emt 0:02:39]} Nxg3+ {[%emt 0:04:55]} 23. Rxg3 {[%emt 0:00:56]} Nxf4 {[%emt 0:00:13]} 24. Rxd8 {[%emt 0:04:13]} Rxd8 {[%emt 0:00:02]} 25. Rg4 {[%emt 0:01:12]} Ne6 {[%emt 0:01:02]} 26. Rc4 {[%emt 0:02:19]} Rd4 {[%emt 0:01:44]} 27. Be2 {[%emt 0:03:41]} Rxc4 {[%emt 0:03:15]} 28. Bxc4 {[%emt 0:00:06]} Nd4 {[%emt 0:00:07]} 29. Bd3 {[%emt 0:00:37]} Nf5 {[%emt 0:00:10]} 30. Kf2 {[%emt 0:02:24]} Nxh4 {[%emt 0:01:01]} 31. g4 {[%emt 0:00:46]} g5 {[%emt 0:00:34]} 32. Be4 {[%emt 0:00:34]} Kf8 {[%emt 0:04:49]} 33. b5 {[%emt 0:02:23]} cxb5 {[%emt 0:00:14]} 34. Bxb7 {[%emt 0:00:06]} a5 {[%emt 0:00:35]} 35. c3 {[%emt 0:00:58]} Ng6 {[%emt 0:00:34]} 36. Ba6 {[%emt 0:00:21]} Ne5 {[%emt 0:00:33]} 37. Kg3 {[%emt 0:00:09]} Ke7 {[%emt 0:02:10]} 38. Bxb5 {[%emt 0:00:21]} Kd6 {[%emt 0:00:02]} 39. a4 {[%emt 0:01:12]} g6 {[%emt 0:01:15]} 40. Be2 {[%emt 0:00:00]} f5 {[%emt 0:00:57]} 41. gxf5 {[%emt 0:02:45]} gxf5 {[%emt 0:00:04]} 42. Kf2 {[%emt 0:01:01]} f4 {[%emt 0:00:16]} 43. Bb5 {[%emt 0:00:44]} g4 {[%emt 0:00:45]} 44. Ba6 {[%emt 0:01:14]} Kd5 {[%emt 0:00:17]} 45. Bf1 {[%emt 0:01:30]} Ke4 {[%emt 0:00:30]} 46. Ba6 {[%emt 0:00:28]} Nd3+ {[%emt 0:02:01]} 47. Kg2 {[%emt 0:01:12]} f3+ {[%emt 0:00:46]} 48. Kg3 {[%emt 0:02:46]} Nc5 {[%emt 0:00:01]} 49. Bb5 {[%emt 0:00:20]} Kf5 {[%emt 0:00:14]} 50. Bc6 {[%emt 0:01:01]} Ne4+ {[%emt 0:00:15]} 51. Kh2 {[%emt 0:00:26]} Kf4 {[%emt 0:00:47]} 52. c4 {[%emt 0:00:41]} g3+ {[%emt 0:00:11]} 53. Kg1 {[%emt 0:00:22]} Nd2 {[%emt 0:00:07]} 0-1

[Event "EYCC 2017"]
[Site "Mamaia"]
[Date "2017.09.08"]
[Round "4"]
[White "Szucs, Edina"]
[Black "Diakonova, Ekaterina"]
[Result "1/2-1/2"]
[ECO "B12"]
[WhiteElo "2023"]
[BlackElo "2276"]
[Annotator "NA"]
[PlyCount "83"]
[EventDate "2017.??.??"]
[EventType "swiss"]
[EventCountry "ROU"]
[SourceTitle "playchess.com"]
[Source "ChessBase"]
[SourceQuality "1"]
[TimeControl "40/5400+30:1800+30"]

1. e4 {[%emt 0:00:00]} c6 {[%emt 0:00:03]} 2. d4 {[%emt 0:00:00]} d5 {[%emt 0:00:03]} 3. e5 {[%emt 0:00:55]} Bf5 {[%emt 0:00:29]} 4. Nf3 {[%emt 0:00:23]} e6 {[%emt 0:00:05]} 5. Be2 {[%emt 0:00:33]} c5 {[%emt 0:00:08]} 6. c4 {[%emt 0:03:45]} dxc4 {[%emt 0:11:08]} 7. Nc3 {[%emt 0:03:08]} Nc6 {[%emt 0:09:48]} 8. Be3 {[%emt 0:01:34]} cxd4 {[%emt 0:05:38]} 9. Nxd4 {[%emt 0:00:45]} Nxd4 {[%emt 0:02:55]} 10. Qxd4 {[%emt 0:00:53]} Qxd4 {[%emt 0:09:23]} 11. Bxd4 {[%emt 0:00:09]} Bb4 {[%emt 0:00:14]} 12. Bxc4 {[%emt 0:01:20]} Ne7 {[%emt 0:02:00]} 13. O-O-O {[%emt 0:04:04]} a6 {[%emt 0:09:46]} 14. a3 {[%emt 0:03:19]} Bxc3 {[%emt 0:01:27]} 15. Bxc3 {[%emt 0:00:33]} Rc8 {[%emt 0:01:49]} 16. Bb3 {[%emt 0:07:19]} Be4 {[%emt 0:03:16]} 17. f3 {[%emt 0:02:37]} Bd5 {[%emt 0:00:04]} 18. Bc2 {[%emt 0:00:22]} h5 {[%emt 0:04:32]} 19. Rd2 {[%emt 0:01:34]} h4 {[%emt 0:00:38]} 20. h3 {[%emt 0:00:23]} Rh5 {[%emt 0:02:11]} 21. Kb1 {[%emt 0:01:13]} Nc6 {[%emt 0:04:03]} 22. f4 {[%emt 0:06:40]} Rd8 {[%emt 0:07:02]} 23. Rhd1 {[%emt 0:01:17]} Ke7 {[%emt 0:02:57]} 24. a4 {[%emt 0:05:09]} b5 {[%emt 0:02:06]} 25. b4 {[%emt 0:10:05]} Rb8 {[%emt 0:07:44]} 26. a5 {[%emt 0:00:27]} Rhh8 {[%emt 0:00:05]} 27. Kb2 {[%emt 0:04:43]} Rb7 {[%emt 0:00:26]} 28. Bb3 {[%emt 0:01:02]} Bc4 {[%emt 0:03:59]} 29. Rd6 {[%emt 0:03:53]} Rc8 {[%emt 0:01:11]} 30. Be1 {[%emt 0:00:41]} g5 {[%emt 0:00:36]} 31. fxg5 {[%emt 0:02:34]} Nxe5 {[%emt 0:00:06]} 32. Bxh4 {[%emt 0:00:42]} Rbc7 {[%emt 0:02:29]} 33. Rxa6 {[%emt 0:05:37]} Bxb3 {[%emt 0:02:03]} 34. Kxb3 {[%emt 0:00:14]} Rc3+ {[%emt 0:00:23]} 35. Kb2 {[%emt 0:00:21]} Nd3+ {[%emt 0:01:12]} 36. Kb1 {[%emt 0:02:18]} Rb3+ {[%emt 0:00:33]} 37. Ka2 {[%emt 0:01:05]} Rb2+ {[%emt 0:01:45]} 38. Ka1 {[%emt 0:00:37]} Rcc2 {[%emt 0:04:27]} 39. g6+ {[%emt 0:04:58]} f6 {[%emt 0:00:05]} 40. Ra7+ {[%emt 0:00:00]} Ke8 {[%emt 0:01:00]} 41. Rxd3 {[%emt 0:01:28]} Ra2+ {[%emt 0:00:04]} 42. Kb1 1/2-1/2

[Event "EYCC 2017"]
[Site "Mamaia"]
[Date "2017.09.08"]
[Round "4"]
[White "Ciocan, Maria-Alexandra"]
[Black "Antova, Gabriela"]
[Result "0-1"]
[ECO "A08"]
[WhiteElo "2015"]
[BlackElo "2256"]
[Annotator "NA"]
[PlyCount "101"]
[EventDate "2017.??.??"]
[EventType "swiss"]
[EventCountry "ROU"]
[SourceTitle "playchess.com"]
[Source "ChessBase"]
[SourceQuality "1"]
[TimeControl "40/5400+30:1800+30"]

1. Nf3 {[%emt 0:00:00]} d5 {[%emt 0:00:08]} 2. g3 {[%emt 0:00:00]} c5 {[%emt 0:02:03]} 3. Bg2 {[%emt 0:01:33]} Nc6 {[%emt 0:02:11]} 4. O-O {[%emt 0:00:07]} e5 {[%emt 0:00:47]} 5. d3 {[%emt 0:00:08]} Nf6 {[%emt 0:00:28]} 6. e4 {[%emt 0:00:44]} Be7 {[%emt 0:01:03]} 7. Nbd2 {[%emt 0:00:17]} O-O {[%emt 0:00:37]} 8. exd5 {[%emt 0:00:24]} Nxd5 {[%emt 0:00:09]} 9. Re1 {[%emt 0:00:09]} f6 {[%emt 0:00:25]} 10. c3 {[%emt 0:00:57]} Kh8 {[%emt 0:02:01]} 11. Nh4 {[%emt 0:03:27]} Be6 {[%emt 0:10:13]} 12. f4 {[%emt 0:01:56]} Qd7 {[%emt 0:04:21]} 13. f5 {[%emt 0:03:39]} Bf7 {[%emt 0:00:11]} 14. Be4 {[%emt 0:02:32]} Rfe8 {[%emt 0:04:14]} 15. Qf3 {[%emt 0:08:03]} Rad8 {[%emt 0:03:01]} 16. Nc4 {[%emt 0:04:03]} b5 {[%emt 0:07:33]} 17. Ne3 {[%emt 0:02:26]} Na5 {[%emt 0:03:51]} 18. Ng6+ {[%emt 0:11:44]} Kg8 {[%emt 0:01:31]} 19. Nxe7+ {[%emt 0:00:44]} Rxe7 {[%emt 0:03:53]} 20. Bd2 {[%emt 0:01:41]} c4 {[%emt 0:12:08]} 21. d4 {[%emt 0:10:31]} Nc6 {[%emt 0:03:29]} 22. a4 {[%emt 0:08:39]} a6 {[%emt 0:03:19]} 23. axb5 {[%emt 0:01:17]} axb5 {[%emt 0:00:12]} 24. Ra6 {[%emt 0:02:53]} Nb8 {[%emt 0:08:40]} 25. Nxd5 {[%emt 0:04:49]} Nxa6 {[%emt 0:07:54]} 26. Nxe7+ {[%emt 0:00:07]} Qxe7 {[%emt 0:00:02]} 27. Bc6 {[%emt 0:04:44]} Nc7 {[%emt 0:01:53]} 28. Bf4 {[%emt 0:04:45]} Nd5 {[%emt 0:04:21]} 29. Bd2 {[%emt 0:07:36]} Qa7 {[%emt 0:00:49]} 30. Bxb5 {[%emt 0:02:07]} exd4 {[%emt 0:00:35]} 31. Qf2 {[%emt 0:01:51]} Qc5 {[%emt 0:00:13]} 32. Ba4 {[%emt 0:02:25]} Qa5 {[%emt 0:00:19]} 33. Bd1 {[%emt 0:01:12]} d3 {[%emt 0:01:44]} 34. Bf3 {[%emt 0:02:27]} Qb5 {[%emt 0:03:24]} 35. Bc1 {[%emt 0:01:38]} Nb6 {[%emt 0:02:19]} 36. g4 {[%emt 0:01:48]} Nd7 {[%emt 0:03:06]} 37. h3 {[%emt 0:02:28]} Ne5 {[%emt 0:00:22]} 38. Bg2 {[%emt 0:00:18]} d2 {[%emt 0:00:37]} 39. Bxd2 {[%emt 0:00:27]} Nd3 {[%emt 0:00:08]} 40. Qf1 {[%emt 0:00:00]} Nxe1 {[%emt 0:00:24]} 41. Qxe1 {[%emt 0:02:09]} Qxb2 {[%emt 0:04:27]} 42. Bf4 {[%emt 0:00:19]} Qc2 {[%emt 0:04:10]} 43. Bf3 {[%emt 0:00:16]} Re8 {[%emt 0:00:53]} 44. Qa1 {[%emt 0:00:13]} Qd3 {[%emt 0:00:48]} 45. Bc6 {[%emt 0:03:11]} Rd8 {[%emt 0:02:36]} 46. Qa5 {[%emt 0:01:17]} h5 {[%emt 0:04:27]} 47. Kh2 {[%emt 0:04:00]} Qe2+ {[%emt 0:01:42]} 48. Bg2 {[%emt 0:00:08]} Rd3 {[%emt 0:01:04]} 49. g5 {[%emt 0:01:38]} fxg5 {[%emt 0:00:45]} 50. Qa8+ {[%emt 0:00:31]} Kh7 {[%emt 0:03:06]} 51. Qc6 {[%emt 0:01:05]} 0-1

[Event "EYCC 2017"]
[Site "Mamaia"]
[Date "2017.09.08"]
[Round "4"]
[White "Zotova, Anastasia"]
[Black "Redondo Benavente, Ana"]
[Result "1-0"]
[ECO "C47"]
[WhiteElo "2009"]
[BlackElo "2087"]
[Annotator "NA"]
[PlyCount "77"]
[EventDate "2017.??.??"]
[EventType "swiss"]
[EventCountry "ROU"]
[SourceTitle "playchess.com"]
[Source "ChessBase"]
[SourceQuality "1"]
[TimeControl "40/5400+30:1800+30"]

1. e4 {[%emt 0:00:00]} e5 {[%emt 0:00:10]} 2. Nf3 {[%emt 0:00:00]} Nc6 {[%emt 0:00:16]} 3. Nc3 {[%emt 0:00:57]} Nf6 {[%emt 0:00:22]} 4. Be2 {[%emt 0:00:37]} Bb4 {[%emt 0:02:20]} 5. Nd5 {[%emt 0:01:04]} Bd6 {[%emt 0:14:24]} 6. Nxf6+ {[%emt 0:00:29]} Qxf6 {[%emt 0:00:02]} 7. O-O {[%emt 0:01:18]} O-O {[%emt 0:07:03]} 8. c3 {[%emt 0:02:29]} Re8 {[%emt 0:00:33]} 9. d3 {[%emt 0:01:03]} h6 {[%emt 0:00:29]} 10. Ne1 {[%emt 0:01:41]} Bc5 {[%emt 0:09:48]} 11. Nc2 {[%emt 0:00:49]} d6 {[%emt 0:00:25]} 12. Kh1 {[%emt 0:01:39]} Qe7 {[%emt 0:03:04]} 13. f4 {[%emt 0:02:49]} exf4 {[%emt 0:00:06]} 14. d4 {[%emt 0:08:20]} Bb6 {[%emt 0:00:23]} 15. Rxf4 {[%emt 0:00:39]} d5 {[%emt 0:06:14]} 16. e5 {[%emt 0:09:02]} Nd8 {[%emt 0:00:42]} 17. Ne3 {[%emt 0:01:02]} c6 {[%emt 0:03:09]} 18. Qe1 {[%emt 0:08:12]} Bc7 {[%emt 0:01:51]} 19. Bg4 {[%emt 0:05:33]} Ne6 {[%emt 0:05:12]} 20. Rf1 {[%emt 0:05:01]} Ng5 {[%emt 0:05:04]} 21. Bxc8 {[%emt 0:00:25]} Raxc8 {[%emt 0:00:06]} 22. Nf5 {[%emt 0:00:07]} Qe6 {[%emt 0:04:39]} 23. Qg3 {[%emt 0:06:54]} Qg6 {[%emt 0:00:44]} 24. Nh4 {[%emt 0:00:59]} Qh5 {[%emt 0:03:00]} 25. Bxg5 {[%emt 0:03:51]} hxg5 {[%emt 0:02:04]} 26. Nf5 {[%emt 0:01:26]} Re6 {[%emt 0:01:26]} 27. Rae1 {[%emt 0:00:40]} Rce8 {[%emt 0:01:05]} 28. Nd6 {[%emt 0:01:42]} Bxd6 {[%emt 0:09:14]} 29. exd6 {[%emt 0:00:01]} Rxe1 {[%emt 0:06:28]} 30. Rxe1 {[%emt 0:00:01]} Rd8 {[%emt 0:00:33]} 31. Kg1 {[%emt 0:06:36]} Qg6 {[%emt 0:01:00]} 32. d7 {[%emt 0:00:06]} Kf8 {[%emt 0:06:56]} 33. Qc7 {[%emt 0:00:06]} Qf6 {[%emt 0:00:01]} 34. Qc8 {[%emt 0:00:15]} g6 {[%emt 0:01:00]} 35. Re8+ {[%emt 0:00:08]} Kg7 {[%emt 0:00:50]} 36. Qxd8 {[%emt 0:00:08]} Qf5 {[%emt 0:01:00]} 37. Rg8+ {[%emt 0:00:12]} Kh7 {[%emt 0:00:04]} 38. Rh8+ {[%emt 0:00:06]} Kg7 {[%emt 0:01:23]} 39. Qf8+ {[%emt 0:00:07]} 1-0